bitfinex/quotes_BTCUSD_20250314
["timestamp","ask_amount","ask_price","bid_price","bid_amount"]
[1741946362467,0.448288,82996.0,82995.0,0.0003386]
[1741946363019,0.450288,82996.0,82995.0,0.0003386]
[1741946366403,0.679215,82996.0,82995.0,0.0003386]
[1741946366608,0.43824,82996.0,82995.0,0.0003386]
[1741946367047,0.450288,82996.0,82995.0,0.00636908]
[1741946367255,0.450288,82996.0,82995.0,0.0003386]
[1741946367449,0.43824,82996.0,82995.0,0.00636908]
[1741946367710,0.43824,82996.0,82995.0,0.0003386]
[1741946367983,0.43824,82996.0,82995.0,0.00636908]
[1741946368191,0.43824,82996.0,82995.0,0.0003386]
[1741946368332,0.43824,82996.0,82995.0,0.00636908]
[1741946368534,0.303,82996.0,82995.0,0.00636908]
[1741946368755,0.43824,82996.0,82995.0,0.00636908]
[1741946370322,0.450288,82996.0,82995.0,0.00636908]
[1741946370629,0.450288,82996.0,82995.0,0.0003386]
[1741946371036,0.43824,82996.0,82995.0,0.0003386]
[1741946371247,0.43824,82996.0,82995.0,0.00636908]
[1741946371443,0.003,82996.0,82995.0,0.2533646]
[1741946371650,0.003,82996.0,82995.0,0.38349508]
[1741946372091,0.003,82996.0,82995.0,0.38651032]
[1741946372510,0.02189653,82996.0,82995.0,0.38651032]
[1741946372708,0.01889653,82996.0,82995.0,0.38651032]
[1741946372909,0.01989653,82996.0,82995.0,0.38651032]
[1741946373344,0.02089653,82996.0,82995.0,0.38651032]
[1741946373588,0.01989653,82996.0,82995.0,0.38651032]
[1741946373838,0.01989653,82996.0,82995.0,0.38751032]
[1741946374922,0.01889653,82996.0,82995.0,0.38751032]
[1741946375124,0.14223158,82996.0,82995.0,0.13448432]
[1741946375527,0.12333505,82996.0,82995.0,0.13448432]
[1741946375947,0.11128705,82996.0,82995.0,0.37546232]
[1741946376149,0.012048,82997.0,82995.0,0.13448432]
[1741946376322,0.012048,82996.0,82995.0,0.13448432]
[1741946376529,0.312048,82997.0,82995.0,0.13448432]
[1741946376827,0.3,82997.0,82996.0,0.253023]
[1741946377056,0.3,82997.0,82996.0,0.00901632]
[1741946377729,0.3,82999.0,82996.0,0.00901632]
[1741946378314,0.31889728,82999.0,82995.0,0.36758264]
[1741946378522,0.31889728,82999.0,82995.0,0.11455764]
[1741946378718,0.01889728,82999.0,82995.0,0.11455764]
[1741946378916,0.3,82997.0,82995.0,0.11455764]
[1741946379237,0.012048,82996.0,82995.0,0.06935764]
[1741946379879,0.012049,82993.0,82991.0,0.0008]
[1741946380653,0.540987,82992.0,82991.0,0.0008]
[1741946380860,0.3,82992.0,82991.0,0.0008]
[1741946381276,0.3,82992.0,82991.0,0.0811]
[1741946381744,0.312049,82992.0,82991.0,0.0821]
[1741946381915,0.312049,82992.0,82991.0,0.0841]
[1741946382288,0.3,82992.0,82991.0,0.0841]
[1741946383123,0.3,82992.0,82991.0,0.0831]
[1741946383531,0.3,82992.0,82991.0,0.0851]
[1741946385653,0.3,82992.0,82991.0,0.0831]
[1741946386043,0.312049,82992.0,82991.0,0.0841]
[1741946386246,0.312049,82992.0,82991.0,0.0821]
[1741946386441,0.312049,82992.0,82991.0,0.0018]
[1741946386622,0.312049,82992.0,82991.0,0.0028]
[1741946386819,0.3,82992.0,82991.0,0.0028]
[1741946387639,0.3,82992.0,82991.0,0.0018]
[1741946388442,0.3,82992.0,82991.0,0.087949]
[1741946389380,0.2995,82992.0,82991.0,0.087949]
[1741946389600,0.299,82992.0,82991.0,0.087949]
[1741946391743,0.299,82992.0,82991.0,0.133849]
[1741946392653,0.30148,82992.0,82991.0,0.133849]
[1741946393477,0.00215081,82992.0,82991.0,0.133849]
[1741946394377,0.00215081,82992.0,82991.0,0.134849]
[1741946394590,0.00215081,82992.0,82991.0,0.1350183]
[1741946395198,0.00215081,82992.0,82991.0,0.1360183]
[1741946395720,0.00215081,82992.0,82991.0,0.13722314]
[1741946401329,0.00215081,82992.0,82991.0,0.15076399]
[1741946401769,0.00215081,82992.0,82991.0,0.14976399]
[1741946401961,0.00215081,82992.0,82991.0,0.15276399]
[1741946402698,0.00215081,82992.0,82991.0,0.14322314]
[1741946403118,0.00215081,82992.0,82991.0,0.29296385]
[1741946403335,8.1e-07,82992.0,82991.0,0.39817393]
[1741946403834,4.1e-07,82995.0,82994.0,0.137649]
[1741946404037,4.1e-07,82995.0,82994.0,0.39437541]
[1741946404263,2.1e-07,82996.0,82995.0,0.15218885]
[1741946404445,2.1e-07,82996.0,82995.0,0.24418914]
[1741946404656,2.1e-07,82996.0,82995.0,0.24298472]
[1741946405084,2.1e-07,82996.0,82995.0,0.24798472]
[1741946405255,0.0003388,83007.0,83006.0,0.380993]
[1741946405396,0.0003388,83007.0,83006.0,0.53073385]
[1741946405601,0.0003388,83007.0,83006.0,0.61031163]
[1741946406014,8e-07,83007.0,83006.0,0.61031163]
[1741946406220,7.1e-07,83014.0,83013.0,0.39551285]
[1741946408831,7.1e-07,83014.0,83013.0,0.39951285]
[1741946409236,7.1e-07,83014.0,83013.0,0.39551285]
[1741946409446,7.1e-07,83014.0,83013.0,0.42734985]
[1741946410516,7.1e-07,83014.0,83013.0,0.4483407]
[1741946410717,7e-07,83014.0,83013.0,0.43234985]
[1741946410867,0.0003386,83033.0,83028.0,0.252926]
[1741946411085,0.0003386,83033.0,83028.0,0.52802685]
[1741946411287,0.0003386,83033.0,83028.0,0.61882272]
[1741946411467,0.0192259,83029.0,83028.0,0.61882272]
[1741946412430,0.0192259,83029.0,83028.0,0.62382272]
[1741946414238,0.0003386,83029.0,83028.0,0.62382272]
[1741946415598,2e-07,83033.0,83032.0,0.252913]
[1741946415824,2e-07,83033.0,83032.0,0.46783163]
[1741946416645,2e-07,83033.0,83032.0,0.38825385]
[1741946416992,8.927e-05,83033.0,83032.0,0.507833]
[1741946417207,0.01897636,83033.0,83032.0,0.507833]
[1741946417622,0.01897636,83033.0,83032.0,0.513833]
[1741946418156,0.01897636,83033.0,83032.0,0.52194204]
[1741946419209,0.01997636,83033.0,83032.0,0.52694204]
[1741946429158,0.01997636,83033.0,83032.0,0.52711124]
[1741946431385,0.01997636,83033.0,83032.0,0.27019124]
[1741946431601,0.01997636,83033.0,83032.0,0.01927824]
[1741946431784,0.00108927,83033.0,83032.0,0.01927824]
[1741946431948,0.00108927,83033.0,83032.0,0.0232122]
[1741946432156,0.0817781,83033.0,83032.0,0.03129293]
[1741946432363,0.00108927,83033.0,83032.0,0.02529293]
[1741946432736,8.927e-05,83033.0,83032.0,0.02129293]
[1741946433257,8.927e-05,83033.0,83032.0,0.01124993]
[1741946433684,8.927e-05,83033.0,83032.0,0.02329293]
[1741946434729,0.01897751,83033.0,83032.0,0.02449712]
[1741946434875,0.01897751,83033.0,83032.0,0.11106304]
[1741946435094,0.01897751,83033.0,83032.0,0.02449711]
[1741946435476,0.01897751,83033.0,83032.0,0.02329293]
[1741946440246,0.3,83048.0,83043.0,0.012041]
[1741946440486,0.3,83048.0,83044.0,0.00802829]
[1741946440641,0.01888798,83047.0,83044.0,0.24886329]
[1741946441066,0.31580241,83048.0,83044.0,0.24886329]
[1741946441783,0.01580241,83048.0,83044.0,0.24886329]
[1741946441990,0.30004105,83050.0,83044.0,0.24886329]
[1741946442167,0.30004105,83050.0,83045.0,0.252872]
[1741946442374,0.56950249,83050.0,83044.0,0.00802829]
[1741946442591,0.002,83048.0,83046.0,0.00801855]
[1741946442769,0.002,83048.0,83045.0,0.24885442]
[1741946442971,0.31664249,83050.0,83045.0,0.252872]
[1741946443172,0.31664249,83050.0,83046.0,0.00801855]
[1741946443371,0.01888701,83049.0,83046.0,0.00801855]
[1741946444189,0.552868,83047.0,83046.0,0.00801855]
[1741946444541,0.3,83044.0,83040.0,0.252889]
[1741946444692,0.312041,83044.0,83038.0,0.240852]
[1741946445393,0.3,83042.0,83038.0,0.240852]
[1741946445596,0.3,83038.0,83034.0,0.252906]
[1741946445776,0.3,83038.0,83037.0,0.240856]
[1741946446233,0.3,83038.0,83037.0,0.252898]
[1741946446432,0.37538074,83038.0,83037.0,0.252898]
[1741946446843,0.07538074,83038.0,83037.0,0.252898]
[1741946447416,0.01888784,83038.0,83037.0,0.253898]
[1741946447785,0.01888784,83038.0,83037.0,0.255898]
[1741946448851,0.0187718,83038.0,83037.0,0.255898]
[1741946450095,0.0187718,83038.0,83037.0,0.003]
[1741946450677,0.0187718,83038.0,83037.0,0.01106519]
[1741946451777,0.0187718,83038.0,83037.0,0.02310719]
[1741946452151,0.0187718,83038.0,83037.0,0.02327639]
[1741946454679,0.240838,83044.0,83038.0,0.252895]
[1741946455112,0.240838,83044.0,83039.0,0.00805544]
[1741946455298,0.25972605,83044.0,83039.0,0.00805544]
[1741946455464,0.240838,83044.0,83039.0,0.00805544]
[1741946455666,0.01204,83051.0,83044.0,0.012041]
[1741946455868,0.14299513,83050.0,83047.0,0.240827]
[1741946456211,0.01664249,83050.0,83045.0,0.02034119]
[1741946456412,0.01664249,83050.0,83041.0,0.252884]
[1741946456413,0.2532014,83049.0,83048.0,0.00828557]
[1741946456612,0.2532014,83049.0,83038.0,0.252893]
[1741946456613,0.24084,83043.0,83038.0,0.252893]
[1741946456752,0.252881,83043.0,83037.0,0.0011692]
[1741946456956,0.252887,83041.0,83039.0,0.00832753]
[1741946457250,0.252887,83041.0,83038.0,0.0083324]
[1741946457394,0.552887,83041.0,83040.0,0.00832266]
[1741946457597,0.552887,83041.0,83039.0,0.00832753]
[1741946457799,0.552887,83041.0,83040.0,0.00832266]
[1741946458183,0.552887,83041.0,83037.0,0.0001692]
[1741946458387,0.552887,83041.0,83040.0,0.00832266]
[1741946458589,0.3,83038.0,83037.0,0.0001692]
[1741946458940,0.312042,83040.0,83037.0,0.0001692]
[1741946459346,0.01888836,83038.0,83037.0,0.0001692]
[1741946460108,0.01888836,83038.0,83037.0,0.0021692]
[1741946461323,0.01888836,83038.0,83037.0,0.0031692]
[1741946461736,0.01888836,83038.0,83037.0,0.2440252]
[1741946462417,0.02400836,83038.0,83037.0,0.2440252]
[1741946463168,0.02400836,83038.0,83037.0,0.2560672]
[1741946463712,0.02400836,83038.0,83037.0,0.3314672]
[1741946469088,0.02400836,83038.0,83037.0,0.0031692]
[1741946469089,0.32400836,83038.0,83037.0,0.0031692]
[1741946469330,0.3849021,83038.0,83037.0,0.0031692]
[1741946470711,0.6377971,83038.0,83037.0,0.0031692]
[1741946470852,0.66206876,83038.0,83037.0,0.01149383]
[1741946471150,0.552911,83033.0,83032.0,0.0001692]
[1741946472857,0.552911,83033.0,83006.0,0.0779]
[1741946472858,0.012047,83007.0,83006.0,0.0779]
[1741946473060,0.3,83002.0,82998.0,0.10708042]
[1741946473267,0.553014,82999.0,82998.0,0.10708042]
[1741946473470,0.688094,82999.0,82998.0,0.10708042]
[1741946473678,0.81358816,82999.0,82998.0,0.10708042]
[1741946473878,0.45020531,82999.0,82998.0,0.10708042]
[1741946474381,0.45020531,82999.0,82998.0,0.0004096]
[1741946474382,0.70321931,82999.0,82998.0,0.0004096]
[1741946474625,0.56813931,82999.0,82998.0,0.0004096]
[1741946474801,0.45923817,82999.0,82998.0,0.2534266]
[1741946475016,0.31512531,82999.0,82998.0,0.2534266]
[1741946475459,0.31512531,82999.0,82998.0,0.2594266]
[1741946475613,0.31512531,82999.0,82998.0,0.2534266]
[1741946475979,0.001,83002.0,83001.0,0.253008]
[1741946476525,0.3,83009.0,83008.0,0.252987]
[1741946476969,0.00904192,83011.0,83010.0,0.25298]
[1741946477301,0.3,83015.0,83010.0,0.25298]
[1741946477586,0.55128998,83015.0,83010.0,0.25298]
[1741946477822,0.55128998,83015.0,83008.0,0.012047]
[1741946477823,0.3,83013.0,83008.0,0.252987]
[1741946478039,0.552974,83013.0,83006.0,0.240943]
[1741946478212,0.252974,83013.0,83007.0,0.252988]
[1741946478415,0.01889576,83012.0,83007.0,0.252988]
[1741946478617,0.07019022,83011.0,83007.0,0.252988]
[1741946478819,0.31112222,83011.0,83002.0,0.012047]
[1741946478991,0.3,83008.0,83002.0,0.012047]
[1741946479219,0.3,83008.0,83003.0,0.012047]
[1741946479604,0.3,83008.0,83002.0,0.253002]
[1741946479605,0.552987,83008.0,83002.0,0.253002]
[1741946479807,0.3,83006.0,83004.0,0.252996]
[1741946480006,0.3,83006.0,83005.0,0.012047]
[1741946480839,0.3,83011.0,83008.0,0.252987]
[1741946481042,0.3,83011.0,83010.0,0.012046]
[1741946482008,0.01889576,83012.0,83010.0,0.012046]
[1741946482304,0.31889576,83012.0,83010.0,0.012046]
[1741946482694,0.31889576,83012.0,83008.0,0.252987]
[1741946483075,0.31889576,83012.0,83008.0,0.253987]
[1741946483299,0.43885665,83012.0,83008.0,0.253987]
[1741946483485,0.43885665,83012.0,83008.0,0.252987]
[1741946483684,0.31889576,83012.0,83010.0,0.252978]
[1741946483926,0.31889576,83012.0,83011.0,0.012046]
[1741946484651,0.01889576,83012.0,83011.0,0.012046]
[1741946486593,0.01889576,83012.0,83011.0,0.013046]
[1741946487877,0.01889576,83012.0,83011.0,0.021555]
[1741946490729,0.01889576,83012.0,83011.0,0.009509]
[1741946491061,0.31889576,83012.0,83011.0,0.009509]
[1741946491230,0.41972532,83012.0,83011.0,0.001]
[1741946492869,0.01889576,83012.0,83011.0,0.253977]
[1741946493075,0.01889576,83012.0,83011.0,0.262486]
[1741946493794,0.01889576,83012.0,83011.0,0.242486]
[1741946494434,0.01889576,83012.0,83011.0,0.23044]
[1741946495095,0.01889576,83012.0,83011.0,0.008509]
[1741946495269,0.01889576,83012.0,83008.0,0.2531552]
[1741946495473,0.55982576,83012.0,83009.0,0.00858077]
[1741946496434,0.57187176,83012.0,83009.0,0.00858077]
[1741946496815,0.55298,83010.0,83009.0,0.00858077]
[1741946497198,0.012046,83009.0,83008.0,0.0001692]
[1741946498298,0.012046,83009.0,83008.0,0.00875485]
[1741946498498,0.012046,83009.0,83008.0,0.0001692]
[1741946500185,0.012046,83009.0,83008.0,0.0021692]
[1741946500402,0.13200689,83009.0,83008.0,0.0021692]
[1741946500630,0.13200689,83009.0,83008.0,0.0031692]
[1741946503627,0.3,83010.0,83008.0,0.0031692]
[1741946503850,0.012046,83009.0,83008.0,0.0031692]
[1741946504643,0.012046,83009.0,83008.0,0.0011692]
[1741946504816,0.012046,83009.0,83008.0,0.0031692]
[1741946506280,0.3,83010.0,83008.0,0.0011692]
[1741946506559,0.3,83010.0,83008.0,0.0031692]
[1741946507144,0.552982,83010.0,83008.0,0.0031692]
[1741946507320,0.552982,83010.0,83008.0,0.0001692]
[1741946507665,0.552982,83010.0,83008.0,0.0031692]
[1741946507907,0.11141396,83009.0,83008.0,0.0031692]
[1741946509101,0.3,83008.0,83004.0,0.2446352]
[1741946509568,0.3,83008.0,83005.0,0.240947]
[1741946510005,0.3,83008.0,83005.0,0.252994]
[1741946510437,0.012047,83003.0,82996.0,0.320473]
[1741946510665,0.012049,82992.0,82988.0,0.082]
[1741946510864,0.3,82992.0,82988.0,0.094049]
[1741946511043,0.3,82992.0,82988.0,0.335047]
[1741946511248,0.3,82992.0,82988.0,0.082]
[1741946511874,0.3,82992.0,82991.0,0.2540073]
[1741946512407,0.3,82992.0,82991.0,0.2419583]
[1741946512607,0.3818095,82992.0,82991.0,0.0009693]
[1741946512828,0.3,82992.0,82991.0,0.0009693]
[1741946513065,0.3,82992.0,82991.0,0.0130183]
[1741946513625,0.3,82992.0,82991.0,0.0160183]
[1741946513946,0.3,82992.0,82991.0,0.0971183]
[1741946517666,0.3188979,82992.0,82991.0,0.0971183]
[1741946519763,0.35078769,82992.0,82991.0,0.0971183]
[1741946519970,0.35078769,82992.0,82991.0,0.0039693]
[1741946520346,0.35078769,82992.0,82991.0,0.0160183]
[1741946520645,0.3188979,82992.0,82991.0,0.0160183]
[1741946521761,0.3188979,82992.0,82991.0,0.0039693]
[1741946521958,0.3188979,82992.0,82991.0,0.0160183]
[1741946522533,0.3388979,82992.0,82991.0,0.0160183]
[1741946525192,0.3,82991.0,82989.0,0.240995]
[1741946525365,0.3,82991.0,82990.0,0.253039]
[1741946526374,0.0388979,82992.0,82990.0,0.253039]
[1741946526732,0.0388979,82992.0,82990.0,0.257039]
[1741946527315,0.06128228,82991.0,82990.0,0.257039]
[1741946527447,0.06128228,82991.0,82990.0,0.253039]
[1741946527886,0.06128228,82991.0,82990.0,0.24499]
[1741946528294,0.06128228,82991.0,82990.0,0.24099]
[1741946528684,0.06128228,82991.0,82980.0,0.241019]
[1741946528685,0.241005,82986.0,82980.0,0.241019]
[1741946528876,0.241005,82986.0,82977.0,0.2413666]
[1741946528877,0.312051,82980.0,82977.0,0.0003386]
[1741946529051,0.3,82980.0,82977.0,0.0003386]
[1741946529275,0.3,82980.0,82979.0,0.012051]
[1741946529881,0.3,82984.0,82980.0,0.241021]
[1741946530219,0.3,82982.0,82980.0,0.241021]
[1741946530358,0.3,82982.0,82980.0,0.236021]
[1741946530733,0.3,82982.0,82981.0,0.13745]
[1741946531101,0.13516,82989.0,82981.0,0.13745]
[1741946531102,0.3,82988.0,82981.0,0.13745]
[1741946531301,0.001,82984.0,82981.0,0.378468]
[1741946531503,0.241003,82987.0,82982.0,0.253063]
[1741946531704,0.312049,82988.0,82982.0,0.253063]
[1741946531934,0.01889992,82984.0,82982.0,0.253063]
[1741946532083,0.01889992,82984.0,82982.0,0.01205]
[1741946532293,0.01889992,82984.0,82982.0,0.253064]
[1741946532897,0.01889992,82984.0,82983.0,0.01205]
[1741946535977,0.01889992,82984.0,82982.0,0.01205]
[1741946536539,0.01889992,82984.0,82982.0,0.253063]
[1741946537761,0.01889992,82984.0,82981.0,0.378468]
[1741946537963,0.01889992,82984.0,82983.0,0.0001693]
[1741946538383,0.31889992,82984.0,82983.0,0.0001693]
[1741946538791,0.41706561,82984.0,82983.0,0.0001693]
[1741946538994,0.40501561,82984.0,82983.0,0.0001693]
[1741946539237,0.41706561,82984.0,82983.0,0.0001693]
[1741946545619,0.33094992,82984.0,82983.0,0.0001693]
[1741946546724,0.90404992,82984.0,82983.0,0.0001693]
[1741946547698,0.58515,82984.0,82983.0,0.0001693]
[1741946548193,0.01205,82984.0,82983.0,0.0001693]
[1741946548400,0.11815,82984.0,82983.0,0.0001693]
[1741946548797,0.01205,82984.0,82983.0,0.0001693]
[1741946551015,0.01890027,82984.0,82983.0,0.2532323]
[1741946551181,0.01890027,82984.0,82983.0,0.3341323]
[1741946551360,0.01923887,82984.0,82983.0,0.3341323]
[1741946551950,0.01923887,82984.0,82983.0,0.0931193]
[1741946552548,0.01923887,82984.0,82983.0,0.0810693]
[1741946553926,0.13919976,82984.0,82983.0,0.0810693]
[1741946554133,0.45124976,82984.0,82983.0,0.0001693]
[1741946555214,0.43919976,82984.0,82983.0,0.0001693]
[1741946555415,0.31923887,82984.0,82983.0,0.2411823]
[1741946555614,0.31923887,82984.0,82983.0,0.2532323]
[1741946556023,0.31923887,82984.0,82983.0,0.0001693]
[1741946556844,0.31923887,82984.0,82983.0,0.0122193]
[1741946557390,0.31923887,82984.0,82983.0,0.0001693]
[1741946558158,0.31923887,82984.0,82983.0,0.0122193]
[1741946558717,0.31923887,82984.0,82983.0,0.0001693]
[1741946559326,0.31923887,82984.0,82983.0,0.3768323]
[1741946560965,0.31923887,82984.0,82983.0,0.3778323]
[1741946562511,0.31923887,82984.0,82983.0,0.1368193]
[1741946563915,0.35116276,82984.0,82983.0,0.1247693]
[1741946564287,0.31923887,82984.0,82983.0,0.1247693]
[1741946564487,0.31923887,82984.0,82983.0,0.1368193]
[1741946565801,0.31923887,82984.0,82983.0,0.1247693]
[1741946566933,0.33128887,82984.0,82983.0,0.0011693]
[1741946567142,0.41743846,82984.0,82983.0,0.0011693]
[1741946567854,0.40538846,82984.0,82983.0,0.0011693]
[1741946568058,0.41743846,82984.0,82983.0,0.0011693]
[1741946570035,0.41743846,82984.0,82983.0,0.0001693]
[1741946571186,0.09819959,82984.0,82983.0,0.0001693]
[1741946571543,0.11709983,82984.0,82983.0,0.0001693]
[1741946571747,0.09819959,82984.0,82983.0,0.0001693]
[1741946571943,0.01205,82984.0,82983.0,0.0001693]
[1741946572537,0.241004,82986.0,82983.0,0.0001693]
[1741946572737,0.01205,82984.0,82983.0,0.0001693]
[1741946573532,0.240998,82988.0,82983.0,0.0001693]
[1741946573764,0.3,82987.0,82983.0,0.2532293]
[1741946574584,0.31889982,82987.0,82983.0,0.2532293]
[1741946574899,0.01889982,82987.0,82983.0,0.0001693]
[1741946575111,0.01989982,82987.0,82985.0,0.01205]
[1741946576211,0.01989982,82987.0,82986.0,0.253054]
[1741946576603,0.01989982,82987.0,82986.0,0.01205]
[1741946576805,0.01989982,82987.0,82985.0,0.329355]
[1741946577009,0.01889982,82987.0,82985.0,0.329355]
[1741946577450,0.01989982,82987.0,82985.0,0.329355]
[1741946577659,0.01989982,82987.0,82986.0,0.01205]
[1741946578590,0.01889982,82987.0,82986.0,0.01205]
[1741946579054,0.01989982,82987.0,82986.0,0.01205]
[1741946581585,0.01989982,82987.0,82985.0,0.329355]
[1741946581815,0.39815788,82986.0,82985.0,0.0763]
[1741946583378,0.541006,82986.0,82983.0,0.0001693]
[1741946583554,0.553056,82986.0,82983.0,0.0001693]
[1741946583701,0.54101,82984.0,82983.0,0.0001693]
[1741946584214,0.23927836,82984.0,82983.0,0.0001693]
[1741946584807,0.241009,82985.0,82983.0,0.0001693]
[1741946585263,0.253059,82985.0,82983.0,0.0001693]
[1741946586059,0.31205,82984.0,82983.0,0.0001693]
[1741946589512,0.55306,82984.0,82983.0,0.0001693]
[1741946589931,0.55306,82984.0,82983.0,0.00844555]
[1741946592235,0.68826,82984.0,82983.0,0.00844555]
[1741946592630,0.68826,82984.0,82983.0,0.0001693]
[1741946593263,0.68826,82984.0,82983.0,0.00844903]
[1741946593457,0.68826,82984.0,82983.0,0.0001693]
[1741946593664,0.68826,82984.0,82983.0,0.00844903]
[1741946593885,0.68826,82984.0,82983.0,0.0001693]
[1741946594042,0.68826,82984.0,82983.0,0.00844903]
[1741946594243,0.68826,82984.0,82983.0,0.0001693]
[1741946594493,0.68826,82984.0,82983.0,0.00844903]
[1741946594655,0.68826,82984.0,82983.0,0.0001693]
[1741946594881,0.68826,82984.0,82983.0,0.00844903]
[1741946595055,0.68826,82984.0,82983.0,0.0001693]
[1741946602240,0.55306,82984.0,82983.0,0.0001693]
[1741946602449,0.68822,82984.0,82983.0,0.0001693]
[1741946604137,0.80818089,82984.0,82983.0,0.0001693]
[1741946606084,0.68822,82984.0,82983.0,0.0001693]
[1741946609435,0.37944181,82984.0,82983.0,0.0001693]
[1741946609842,0.01205,82981.0,82980.0,0.0001693]
[1741946610283,0.01205,82981.0,82980.0,0.00846538]
[1741946610480,0.01205,82981.0,82980.0,0.0001693]
[1741946610690,0.01205,82981.0,82980.0,0.00846538]
[1741946610894,0.01205,82981.0,82980.0,0.0001693]
[1741946611149,0.01205,82981.0,82980.0,0.00846538]
[1741946611301,0.01205,82981.0,82980.0,0.0011693]
[1741946611501,0.01205,82981.0,82980.0,0.00946538]
[1741946611701,0.01205,82981.0,82980.0,0.0011693]
[1741946611906,0.01205,82981.0,82980.0,0.00946538]
[1741946613649,0.0198307,82983.0,82980.0,0.00946538]
[1741946613857,0.241016,82982.0,82980.0,0.00946538]
[1741946615155,0.04439516,82981.0,82980.0,0.00946538]
[1741946615564,0.01205,82981.0,82980.0,0.00946538]
[1741946616027,0.31205,82981.0,82980.0,0.00946538]
[1741946616367,0.31205,82981.0,82980.0,0.0011693]
[1741946616769,0.31205,82981.0,82980.0,0.0001693]
[1741946617465,0.31205,82981.0,82980.0,0.00846538]
[1741946617667,0.43201089,82981.0,82980.0,0.0011693]
[1741946617866,6.20893189,82981.0,82980.0,0.0011693]
[1741946618754,6.2327938,82981.0,82980.0,0.0011693]
[1741946619785,6.2347938,82981.0,82980.0,0.0011693]
[1741946620036,6.2347938,82981.0,82980.0,0.0001693]
[1741946620635,5.5307765,82981.0,82980.0,0.0001693]
[1741946620836,5.5507765,82981.0,82980.0,0.0001693]
[1741946623454,5.43081561,82981.0,82980.0,0.0001693]
[1741946624261,5.56597561,82981.0,82980.0,0.0001693]
[1741946624457,5.41876561,82981.0,82980.0,0.0001693]
[1741946624658,0.06476561,82981.0,82980.0,0.0122203]
[1741946624980,0.04586191,82981.0,82980.0,0.02055712]
[1741946626170,0.29893091,82981.0,82980.0,0.00850612]
[1741946626427,0.59893091,82981.0,82980.0,0.0001693]
[1741946626667,0.62032755,82981.0,82980.0,0.0001693]
[1741946626838,0.59893091,82981.0,82980.0,0.0001693]
[1741946627600,0.61783294,82981.0,82980.0,0.0001693]
[1741946631388,6.39475394,82981.0,82980.0,0.0001693]
[1741946631577,3.40553294,82981.0,82980.0,0.0001693]
[1741946632553,3.52549383,82981.0,82980.0,0.0001693]
[1741946633594,3.40553294,82981.0,82980.0,0.0001693]
[1741946634454,0.312051,82977.0,82976.0,0.0003386]
[1741946634656,0.012052,82970.0,82969.0,0.00016931]
[1741946635030,0.553102,82970.0,82969.0,0.00016931]
[1741946635228,0.6590306,82970.0,82969.0,0.00016931]
[1741946635472,0.553102,82970.0,82969.0,0.00016931]
[1741946635669,0.55315637,82970.0,82969.0,0.00016931]
[1741946636438,0.012054,82959.0,82955.0,0.0803]
[1741946636645,0.3,82958.0,82955.0,0.0803]
[1741946636858,0.3,82956.0,82955.0,0.0803]
[1741946636998,0.41940104,82956.0,82955.0,0.0803]
[1741946637206,0.312054,82956.0,82955.0,0.0803]
[1741946637405,0.312054,82954.0,82953.0,0.0001692]
[1741946638551,0.3,82954.0,82953.0,0.0001692]
[1741946638871,0.3,82955.0,82954.0,0.333451]
[1741946639212,0.3,82955.0,82954.0,0.3419535]
[1741946639823,0.01890638,82956.0,82955.0,0.012054]
[1741946640032,0.01890638,82956.0,82955.0,0.02055161]
[1741946640239,0.01890638,82956.0,82955.0,0.10085161]
[1741946640468,0.01890638,82956.0,82955.0,0.14825161]
[1741946641480,0.01890638,82956.0,82955.0,0.15025161]
[1741946646958,0.01840638,82956.0,82955.0,0.14985161]
[1741946647122,0.01740638,82956.0,82955.0,0.15002091]
[1741946647524,0.01405843,82959.0,82958.0,0.012054]
[1741946647913,0.3,82965.0,82961.0,0.241076]
[1741946648135,0.01384256,82965.0,82962.0,0.012053]
[1741946648355,0.01384256,82965.0,82962.0,0.00848324]
[1741946648504,0.312052,82967.0,82963.0,0.241071]
[1741946648712,0.541061,82967.0,82962.0,0.012053]
[1741946648906,0.553113,82967.0,82964.0,0.00847348]
[1741946649118,0.001,82965.0,82963.0,0.00847836]
[1741946649443,0.3,82963.0,82958.0,0.012054]
[1741946649595,0.312054,82956.0,82955.0,0.1278693]
[1741946650656,0.33095998,82956.0,82955.0,0.1278693]
[1741946651655,0.01890598,82956.0,82955.0,0.1278693]
[1741946652075,0.01890598,82956.0,82955.0,0.1399233]
[1741946652457,0.01890598,82956.0,82955.0,0.0001693]
[1741946652662,0.11227108,82956.0,82955.0,0.0001693]
[1741946653163,0.03095998,82956.0,82955.0,0.0021693]
[1741946653368,0.03095998,82956.0,82955.0,0.0001693]
[1741946656083,6.10788098,82956.0,82955.0,0.0001693]
[1741946656291,3.96225998,82956.0,82955.0,0.0001693]
[1741946657193,3.98690424,82956.0,82955.0,0.0001693]
[1741946657388,4.08795915,82956.0,82955.0,0.0001693]
[1741946658217,4.10795915,82956.0,82955.0,0.0001693]
[1741946660400,4.12686708,82956.0,82955.0,0.0001693]
[1741946661823,4.12786708,82956.0,82955.0,0.0001693]
[1741946662424,4.26306708,82956.0,82955.0,0.0001693]
[1741946663177,4.26206708,82956.0,82955.0,0.0001693]
[1741946663500,3.39140619,82956.0,82955.0,0.0001693]
[1741946663653,2.96220619,82956.0,82955.0,0.0001693]
[1741946664254,2.95920619,82956.0,82955.0,0.0001693]
[1741946664527,0.012054,82954.0,82951.0,0.0008]
[1741946664645,4.099354,82954.0,82951.0,0.0008]
[1741946664849,2.645554,82954.0,82951.0,0.0008]
[1741946665179,0.012055,82952.0,82951.0,0.0008]
[1741946665388,6.088976,82952.0,82951.0,0.0008]
[1741946665591,4.114655,82952.0,82951.0,0.0008]
[1741946665795,4.086055,82952.0,82951.0,0.0008]
[1741946666195,4.20601589,82952.0,82951.0,0.0008]
[1741946667036,4.086055,82952.0,82951.0,0.0008]
[1741946667414,4.088055,82952.0,82951.0,0.0008]
[1741946668014,3.866255,82952.0,82951.0,0.0008]
[1741946668344,2.059055,82952.0,82951.0,0.0008]
[1741946668551,2.026655,82952.0,82951.0,0.0008]
[1741946668926,0.598055,82952.0,82951.0,0.0008]
[1741946671831,0.314055,82952.0,82951.0,0.0008]
[1741946672093,2.670955,82952.0,82951.0,0.0008]
[1741946672286,2.670955,82952.0,82951.0,0.0009694]
[1741946675712,1.363955,82952.0,82951.0,0.0009694]
[1741946682086,1.383955,82952.0,82951.0,0.0009694]